bitfinex/quotes_BTCUSD_20250102
["timestamp","ask_amount","ask_price","bid_price","bid_amount"]
[1735835739999,0.00153305,97633.0,97631.0,0.003]
[1735835740417,0.00153305,97633.0,97631.0,0.005]
[1735835740785,0.00153305,97633.0,97626.0,0.204861]
[1735835741000,0.00153305,97633.0,97626.0,0.207861]
[1735835741204,0.00153305,97633.0,97631.0,0.002]
[1735835741685,0.00153305,97633.0,97631.0,0.003]
[1735835742263,0.18188632,97632.0,97631.0,0.003]
[1735835742503,0.00339595,97632.0,97631.0,0.003]
[1735835742855,0.00339595,97632.0,97626.0,0.002]
[1735835743316,0.00153305,97633.0,97627.0,0.204861]
[1735835743865,0.00153305,97633.0,97631.0,0.002]
[1735835744287,0.00153305,97633.0,97631.0,0.004]
[1735835744696,0.00153305,97633.0,97631.0,0.002]
[1735835744972,0.00153305,97633.0,97627.0,0.204861]
[1735835745304,0.00153305,97633.0,97631.0,0.002]
[1735835745717,0.00153305,97633.0,97627.0,0.204861]
[1735835746120,0.00153305,97633.0,97630.0,0.204853]
[1735835746326,0.00153305,97633.0,97630.0,0.409707]
[1735835746728,0.00153305,97633.0,97632.0,0.20485]
[1735835747947,0.00153305,97633.0,97632.0,0.20885]
[1735835748840,0.00153305,97633.0,97632.0,0.21185]
[1735835752791,0.00153305,97633.0,97632.0,0.007]
[1735835754631,0.00153305,97633.0,97632.0,0.10798632]
[1735835755438,0.00153305,97633.0,97632.0,0.11098632]
[1735835755643,0.00153305,97633.0,97632.0,0.10698632]
[1735835756051,0.00153305,97633.0,97632.0,0.11098632]
[1735835758303,0.00153305,97633.0,97632.0,0.007]
[1735835758964,0.00492901,97633.0,97632.0,0.007]
[1735835759185,0.00153305,97633.0,97632.0,0.007]
[1735835759798,0.00153305,97633.0,97632.0,0.003]
[1735835760035,0.00153305,97633.0,97632.0,0.10398632]
[1735835760240,0.00153305,97633.0,97632.0,0.10698632]
[1735835760469,0.00153305,97633.0,97632.0,0.10998632]
[1735835760673,0.00153305,97633.0,97632.0,0.25618632]
[1735835761132,0.00153305,97633.0,97632.0,0.15318632]
[1735835761352,0.00153305,97633.0,97632.0,0.15618632]
[1735835762415,0.00153305,97633.0,97632.0,0.10998632]
[1735835762628,0.00153305,97633.0,97632.0,0.10698632]
[1735835762831,0.00153305,97633.0,97632.0,0.007]
[1735835763623,0.00153305,97633.0,97616.0,0.204882]
[1735835764059,0.00153305,97633.0,97632.0,0.006]
[1735835764213,0.00153305,97633.0,97632.0,0.003]
[1735835764787,0.00153305,97633.0,97630.0,0.204854]
[1735835765711,0.00153305,97633.0,97630.0,0.61369432]
[1735835765882,0.00153305,97633.0,97632.0,0.20474078]
[1735835766096,0.00153305,97633.0,97632.0,0.3087271]
[1735835766469,0.00153305,97633.0,97632.0,0.3097271]
[1735835766903,0.00153305,97633.0,97632.0,0.3087271]
[1735835767315,0.00153305,97633.0,97632.0,0.3117271]
[1735835768344,0.00153305,97633.0,97632.0,0.32085172]
[1735835768546,0.00153305,97633.0,97632.0,0.31985172]
[1735835768770,0.00153305,97633.0,97632.0,0.2158654]
[1735835768993,0.00153305,97633.0,97632.0,0.2178654]
[1735835769209,0.00153305,97633.0,97632.0,0.2158654]
[1735835769427,0.00153305,97633.0,97632.0,0.20474078]
[1735835769584,0.00153305,97633.0,97632.0,0.20774078]
[1735835769955,0.00153305,97633.0,97632.0,0.20974078]
[1735835770378,0.00153305,97633.0,97632.0,0.20774078]
[1735835770627,0.00153305,97633.0,97632.0,0.21074078]
[1735835771202,0.00153305,97633.0,97632.0,0.20774078]
[1735835771469,0.00153305,97633.0,97632.0,0.21074078]
[1735835771847,0.00153305,97633.0,97632.0,0.20774078]
[1735835772065,0.00153305,97633.0,97632.0,0.3157271]
[1735835774410,0.00153305,97633.0,97632.0,0.3127271]
[1735835774771,0.00153305,97633.0,97632.0,0.3167271]
[1735835774984,0.00153305,97633.0,97632.0,0.3127271]
[1735835775187,0.00153305,97633.0,97632.0,0.3187271]
[1735835775556,0.00153305,97633.0,97632.0,0.3127271]
[1735835775958,0.00153305,97633.0,97632.0,0.3197271]
[1735835776593,0.00153305,97633.0,97632.0,0.3157271]
[1735835777132,0.00153305,97633.0,97632.0,0.3197271]
[1735835779529,0.00153305,97633.0,97632.0,0.3157271]
[1735835779734,0.00153305,97633.0,97632.0,0.3087271]
[1735835779960,0.00153305,97633.0,97632.0,0.3137271]
[1735835780363,0.00153305,97633.0,97632.0,0.3207271]
[1735835780630,0.00153305,97633.0,97632.0,0.3208979]
[1735835781657,0.00153305,97633.0,97632.0,0.3138979]
[1735835782467,0.00153305,97633.0,97632.0,0.3208979]
[1735835782699,0.00153305,97633.0,97632.0,0.3088979]
[1735835783074,0.00153305,97633.0,97632.0,0.21191158]
[1735835783517,0.00153305,97633.0,97632.0,0.21691158]
[1735835783912,0.00153305,97633.0,97632.0,0.21191158]
[1735835784513,0.00153305,97633.0,97632.0,0.21691158]
[1735835789635,0.00153305,97633.0,97632.0,0.3208979]
[1735835793012,0.00153305,97633.0,97632.0,0.21691158]
[1735835793231,0.00153305,97633.0,97632.0,0.3208979]
[1735835793420,0.00153305,97633.0,97632.0,0.21691158]
[1735835794946,0.08263305,97633.0,97632.0,0.0121708]
[1735835795177,0.0811855,97633.0,97632.0,0.0121708]
[1735835795360,0.18517182,97633.0,97632.0,0.0121708]
[1735835795803,0.18517182,97633.0,97632.0,0.0071708]
[1735835796006,0.196127,97633.0,97632.0,0.0071708]
[1735835796328,0.245527,97633.0,97632.0,0.0031708]
[1735835796735,0.0811855,97633.0,97632.0,0.0001708]
[1735835796944,8.55e-05,97633.0,97632.0,0.2050208]
[1735835797363,8.55e-05,97633.0,97632.0,0.0001708]
[1735835799522,8.55e-05,97633.0,97632.0,0.0031708]
[1735835799835,0.0755855,97633.0,97632.0,0.0031708]
[1735835800034,0.0755855,97633.0,97632.0,0.0041708]
[1735835800261,0.0755855,97633.0,97632.0,0.0021708]
[1735835801313,0.17957182,97633.0,97632.0,0.0021708]
[1735835801722,0.17957182,97633.0,97632.0,0.0001708]
[1735835801944,0.27164477,97633.0,97632.0,0.0001708]
[1735835802151,0.37917182,97633.0,97632.0,0.0001708]
[1735835804885,0.37917182,97633.0,97632.0,0.0011708]
[1735835805119,0.50217182,97633.0,97632.0,0.0001708]
[1735835805647,0.578469,97623.0,97607.0,0.00031773]
[1735835805802,0.58245532,97623.0,97607.0,0.00031773]
[1735835806376,0.60545532,97623.0,97607.0,0.00031773]
[1735835806802,0.58245532,97623.0,97607.0,0.00031773]
[1735835807172,0.58245532,97623.0,97622.0,0.001171]
[1735835807408,0.7556743,97623.0,97622.0,0.001171]
[1735835807917,0.7556743,97623.0,97622.0,0.000171]
[1735835808319,0.7556743,97623.0,97622.0,0.001171]
[1735835808506,0.43245532,97623.0,97622.0,0.001171]
[1735835809517,0.43245532,97623.0,97622.0,0.000171]
[1735835809945,0.43545532,97623.0,97622.0,0.000171]
[1735835810946,0.74148248,97623.0,97622.0,0.000171]
[1735835811147,0.70845532,97623.0,97622.0,0.000171]
[1735835811771,0.80059062,97623.0,97622.0,0.000171]
[1735835812738,1.03140012,97623.0,97622.0,0.000171]
[1735835814741,0.08189198,97624.0,97623.0,0.2]
[1735835814868,0.08189198,97624.0,97623.0,0.18318632]
[1735835815075,0.08189198,97624.0,97623.0,0.28318632]
[1735835815505,0.08189198,97626.0,97625.0,0.1]
[1735835816101,0.08189198,97626.0,97623.0,0.005]
[1735835816305,0.08189198,97626.0,97622.0,0.000171]
[1735835816705,0.08979841,97641.0,97622.0,0.000171]
[1735835816902,0.001,97624.0,97623.0,0.009]
[1735835817129,0.001,97624.0,97623.0,0.313869]
[1735835817325,8.54e-05,97632.0,97623.0,0.304869]
[1735835817574,8.54e-05,97632.0,97626.0,0.204863]
[1735835817817,8.54e-05,97632.0,97625.0,0.107]
[1735835818429,8.54e-05,97632.0,97625.0,0.1]
[1735835819473,8.54e-05,97632.0,97625.0,0.103]
[1735835819879,8.54e-05,97632.0,97625.0,0.109]
[1735835820082,8.54e-05,97632.0,97625.0,0.103]
[1735835820298,8.54e-05,97632.0,97625.0,0.003]
[1735835820474,0.10398632,97631.0,97625.0,0.009]
[1735835820908,0.0752,97629.0,97625.0,0.006]
[1735835821100,0.10398632,97628.0,97625.0,0.006]
[1735835821318,0.11317729,97628.0,97625.0,0.009]
[1735835821733,0.11317729,97628.0,97625.0,0.006]
[1735835822312,0.11317729,97628.0,97622.0,0.000171]
[1735835822716,0.11317729,97628.0,97625.0,0.004]
[1735835822884,0.11317729,97628.0,97622.0,0.000171]
[1735835823390,0.01019097,97628.0,97623.0,0.1]
[1735835823791,0.001,97628.0,97623.0,0.1]
[1735835824000,8.54e-05,97632.0,97630.0,0.204854]
[1735835824217,8.54e-05,97632.0,97631.0,0.1]
[1735835826038,8.54e-05,97632.0,97631.0,0.009]
[1735835826440,8.54e-05,97632.0,97625.0,0.1]
[1735835826850,8.54e-05,97632.0,97631.0,0.007]
[1735835827050,8.54e-05,97632.0,97619.0,0.1]
[1735835827350,8.54e-05,97632.0,97631.0,0.006]
[1735835827779,8.54e-05,97632.0,97631.0,0.011]
[1735835828052,0.25407172,97632.0,97631.0,0.011]
[1735835828275,0.25407172,97632.0,97631.0,0.006]
[1735835828680,0.25407172,97632.0,97631.0,0.001]
[1735835829068,0.15,97631.0,97607.0,0.00031773]
[1735835829247,0.204869,97623.0,97607.0,0.00031773]
[1735835829445,0.204852,97631.0,97607.0,0.00031773]
[1735835829446,0.204852,97631.0,97612.0,0.1]
[1735835829652,0.204861,97627.0,97614.0,0.1]
[1735835830058,0.204855,97630.0,97614.0,0.1]
[1735835830493,0.40971,97630.0,97614.0,0.1]
[1735835830702,0.204857,97629.0,97614.0,0.1]
[1735835831514,0.204857,97629.0,97622.0,0.001171]
[1735835831722,0.10398632,97631.0,97622.0,0.001171]
[1735835831927,0.204869,97623.0,97622.0,0.000171]
[1735835832078,0.204859,97628.0,97622.0,0.000171]
[1735835833183,0.204867,97624.0,97622.0,0.001171]
[1735835834393,0.10398632,97623.0,97622.0,0.000171]
[1735835835436,0.10398632,97623.0,97622.0,0.001171]
[1735835835848,0.10398632,97623.0,97622.0,0.000171]
[1735835836275,0.10398632,97623.0,97622.0,0.001171]
[1735835837447,0.25398632,97623.0,97622.0,0.001171]
[1735835837652,0.33378632,97623.0,97622.0,0.000171]
[1735835837885,0.45126165,97623.0,97622.0,0.000171]
[1735835838092,0.40298632,97623.0,97622.0,0.000171]
[1735835838297,0.50298632,97623.0,97622.0,0.000171]
[1735835839359,0.51902424,97623.0,97622.0,0.000171]
[1735835839539,0.51902424,97623.0,97622.0,0.001171]
[1735835840263,0.41902424,97623.0,97622.0,0.001171]
[1735835840491,0.41902424,97623.0,97622.0,0.000171]
[1735835840633,0.51902424,97623.0,97622.0,0.001171]
[1735835840834,0.50298632,97623.0,97622.0,0.001171]
[1735835842472,0.51902399,97623.0,97622.0,0.001171]
[1735835842952,0.51902399,97623.0,97622.0,0.006171]
[1735835844939,0.34982399,97623.0,97622.0,0.006171]
[1735835845154,0.27002399,97623.0,97622.0,0.006171]
[1735835845522,0.25398632,97623.0,97622.0,0.006171]
[1735835845924,0.25398632,97623.0,97622.0,0.005171]
[1735835846347,0.25398632,97623.0,97622.0,0.006171]
[1735835847115,0.25398632,97623.0,97622.0,0.005171]
[1735835847495,0.27698632,97623.0,97622.0,0.006171]
[1735835847832,0.29302254,97623.0,97622.0,0.006171]
[1735835848066,0.25398632,97623.0,97622.0,0.006171]
[1735835848670,0.10398632,97623.0,97622.0,0.005171]
[1735835849070,0.10398632,97623.0,97622.0,0.006171]
[1735835849296,0.10398632,97623.0,97622.0,0.005171]
[1735835849650,8.55e-05,97624.0,97622.0,0.005171]
[1735835849891,8.55e-05,97624.0,97623.0,0.304869]
[1735835850305,8.55e-05,97624.0,97623.0,0.383469]
[1735835851819,8.55e-05,97624.0,97623.0,0.388469]
[1735835852234,0.21569045,97648.0,97625.0,0.204865]
[1735835852670,0.21569045,97648.0,97630.0,0.204853]
[1735835853875,0.21569045,97648.0,97630.0,0.209853]
[1735835854955,0.21569045,97648.0,97630.0,0.212853]
[1735835856602,0.01087145,97648.0,97630.0,0.212853]
[1735835857738,0.21568945,97648.0,97630.0,0.212853]
[1735835857948,0.204835,97640.0,97630.0,0.008]
[1735835858470,0.204843,97636.0,97630.0,0.008]
[1735835858788,0.0064481,97631.0,97630.0,0.008]
[1735835859688,0.2049355,97633.0,97630.0,0.003]
[1735835860043,0.00644895,97631.0,97624.0,0.00130076]
[1735835860279,0.00644895,97631.0,97630.0,0.001]
[1735835860659,0.00644895,97631.0,97625.0,0.1]
[1735835860800,8.55e-05,97633.0,97625.0,0.1]
[1735835861007,8.55e-05,97633.0,97630.0,0.001]
[1735835861435,8.55e-05,97633.0,97625.0,0.1]
[1735835861635,8.55e-05,97633.0,97630.0,0.001]
[1735835862974,8.55e-05,97633.0,97625.0,0.304865]
[1735835863193,8.55e-05,97633.0,97625.0,0.101]
[1735835863758,8.55e-05,97633.0,97625.0,0.1]
[1735835863967,8.55e-05,97633.0,97630.0,0.001]
[1735835864483,8.55e-05,97633.0,97625.0,0.0995]
[1735835864902,8.55e-05,97633.0,97625.0,0.001]
[1735835865127,8.55e-05,97633.0,97625.0,0.1005]
[1735835865302,8.55e-05,97633.0,97625.0,0.001]
[1735835865970,0.204852,97631.0,97625.0,0.001]
[1735835866142,0.204852,97631.0,97624.0,0.00130076]
[1735835866352,0.204852,97631.0,97625.0,0.001]
[1735835866990,0.204852,97631.0,97624.0,0.00130076]
[1735835867192,0.204862,97627.0,97625.0,0.001]
[1735835867602,0.10398632,97626.0,97625.0,0.001]
[1735835868012,0.204865,97625.0,97624.0,0.00130076]
[1735835868218,8.54e-05,97632.0,97624.0,0.00130076]
[1735835869048,0.204855,97630.0,97624.0,0.00130076]
[1735835869248,0.204865,97625.0,97624.0,0.00130076]
[1735835869395,0.30885132,97625.0,97624.0,0.00130076]
[1735835869826,0.53845132,97625.0,97624.0,0.00230076]
[1735835870235,0.53845132,97625.0,97624.0,0.00130076]
[1735835870479,0.45885132,97625.0,97624.0,0.00130076]
[1735835872755,0.30885132,97625.0,97624.0,0.00130076]
[1735835875879,0.30885132,97625.0,97624.0,0.00147176]
[1735835876753,0.45885132,97625.0,97624.0,0.00147176]
[1735835882088,0.204865,97625.0,97624.0,0.00147176]
[1735835882288,0.204863,97626.0,97624.0,0.00147176]
[1735835882449,0.30884932,97626.0,97624.0,0.00147176]
[1735835883119,0.30884932,97626.0,97598.0,0.20492]
[1735835883120,0.354915,97601.0,97600.0,0.08895776]
[1735835883321,0.354915,97601.0,97578.0,0.09034595]
[1735835883322,0.1,97594.0,97578.0,0.09034595]
[1735835883479,0.20496,97580.0,97578.0,0.09034595]
[1735835883809,0.30894632,97580.0,97578.0,0.09034595]
[1735835884020,0.20496,97580.0,97578.0,0.09034595]
[1735835884308,0.20496,97580.0,97554.0,0.205013]
[1735835884543,0.20498,97571.0,97554.0,0.205013]
[1735835884974,0.204972,97574.0,97554.0,0.205013]
[1735835885151,0.20497,97575.0,97559.0,0.205003]
[1735835885356,0.204982,97570.0,97554.0,0.205013]
[1735835886133,0.004,97571.0,97558.0,0.205004]
[1735835886338,0.004,97571.0,97567.0,0.204987]
[1735835886519,0.004,97571.0,97570.0,0.1]
[1735835886928,0.001,97574.0,97571.0,0.409956]
[1735835887146,4.91e-05,97580.0,97579.0,0.204962]
[1735835887344,4.91e-05,97580.0,97573.0,0.409948]
[1735835887881,4.91e-05,97580.0,97579.0,0.1]
[1735835888082,4.91e-05,97580.0,97579.0,0.53674832]
[1735835888284,0.0483,97630.0,97579.0,0.53674832]
[1735835888285,0.0919471,97622.0,97611.0,0.204892]
[1735835888501,0.0919471,97622.0,97613.0,0.1]
[1735835888707,0.0919471,97622.0,97616.0,0.204882]
[1735835889509,0.003,97622.0,97620.0,0.204874]
[1735835889712,8.55e-05,97625.0,97614.0,0.02039989]
[1735835889923,8.55e-05,97625.0,97622.0,0.204871]
[1735835890258,8.55e-05,97625.0,97624.0,0.304867]
[1735835890399,8.55e-05,97625.0,97624.0,0.40885332]
[1735835891924,8.55e-05,97625.0,97624.0,0.41972747]
[1735835892694,8.55e-05,97625.0,97624.0,0.21574115]
[1735835892900,8.55e-05,97625.0,97624.0,0.217867]
[1735835893228,8.55e-05,97625.0,97624.0,0.008]
[1735835893662,8.55e-05,97625.0,97624.0,0.005]
[1735835894058,0.0010855,97625.0,97619.0,0.204877]
[1735835894258,0.0010855,97625.0,97603.0,0.20491]
[1735835894462,0.204879,97619.0,97603.0,0.20491]
[1735835894774,0.204869,97623.0,97603.0,0.20491]
[1735835894942,0.204869,97623.0,97604.0,0.204909]
[1735835895550,0.204869,97623.0,97605.0,0.204907]
[1735835896186,0.204869,97623.0,97619.0,0.001]
[1735835896516,8.55e-05,97625.0,97598.0,0.304921]
[1735835896517,8.55e-05,97625.0,97598.0,0.1]
[1735835896862,0.003,97623.0,97609.0,0.204897]
[1735835897308,0.10398632,97622.0,97595.0,0.204927]
[1735835897505,0.10398632,97622.0,97589.0,0.20494]
[1735835897656,0.204906,97606.0,97589.0,0.20494]
[1735835897857,0.204919,97600.0,97584.0,0.204951]
[1735835898061,0.204938,97591.0,97577.0,0.204965]
[1735835898261,0.15,97613.0,97577.0,0.204965]
[1735835898464,0.204927,97596.0,97577.0,0.204965]
[1735835898663,0.204927,97596.0,97577.0,0.40993]
[1735835899092,0.204927,97596.0,97582.0,0.204954]
[1735835899470,0.204927,97596.0,97577.0,0.20511174]
[1735835899880,0.004,97596.0,97577.0,0.20511174]
[1735835900061,0.204935,97592.0,97577.0,0.20511174]
[1735835900485,0.007,97596.0,97577.0,0.00014674]
[1735835900685,0.204928,97595.0,97578.0,0.204964]
[1735835901089,0.004,97596.0,97581.0,0.204957]
[1735835901309,0.004,97596.0,97586.0,0.409892]
[1735835901525,0.004,97596.0,97591.0,0.204935]
[1735835901708,0.004,97596.0,97591.0,0.40987]
[1735835901910,0.004,97596.0,97593.0,0.204932]
[1735835902126,0.004,97596.0,97594.0,0.10398632]
[1735835902540,0.004,97596.0,97595.0,0.227928]
[1735835902699,0.0919471,97620.0,97595.0,0.14793063]
[1735835902907,0.01062459,97622.0,97607.0,0.204901]
[1735835903106,8.55e-05,97624.0,97603.0,0.1]
[1735835903312,8.55e-05,97624.0,97610.0,0.204895]
[1735835904260,8.55e-05,97624.0,97610.0,0.20504174]
[1735835905098,8.55e-05,97624.0,97610.0,0.20604174]
[1735835905502,8.55e-05,97624.0,97610.0,0.00114674]
[1735835906232,8.55e-05,97624.0,97611.0,0.204894]
[1735835906635,8.55e-05,97624.0,97610.0,0.00114674]
[1735835906843,8.55e-05,97624.0,97610.0,0.00014674]
[1735835907046,0.204869,97623.0,97610.0,0.00114674]
[1735835907253,0.204878,97619.0,97610.0,0.00114674]
[1735835907658,0.204871,97622.0,97610.0,0.00014674]
[1735835907859,0.204869,97623.0,97610.0,0.00114674]
[1735835908425,0.204869,97623.0,97610.0,0.00014674]
[1735835909260,0.207869,97623.0,97610.0,0.00014674]
[1735835909465,0.409739,97623.0,97610.0,0.00014674]
[1735835909776,0.411739,97623.0,97610.0,0.00014674]
[1735835910192,0.204869,97623.0,97610.0,0.00014674]
[1735835910415,0.206869,97623.0,97610.0,0.00014674]
[1735835910997,0.002,97623.0,97610.0,0.00014674]
[1735835911197,0.409743,97622.0,97610.0,0.00014674]
[1735835912371,0.20488,97619.0,97610.0,0.00014674]
[1735835913515,0.20588,97619.0,97610.0,0.00014674]
[1735835913741,0.20488,97619.0,97610.0,0.00014674]
[1735835913962,0.15,97618.0,97610.0,0.00014674]
[1735835914182,0.204894,97612.0,97610.0,0.00014674]
[1735835914574,0.204894,97612.0,97610.0,0.00114674]
[1735835914855,0.20489,97614.0,97610.0,0.00114674]
[1735835915082,0.35488,97618.0,97610.0,0.00014674]
[1735835915663,0.409776,97614.0,97610.0,0.00114674]
[1735835916183,0.204892,97612.0,97610.0,0.00014674]
[1735835916391,0.0799,97611.0,97610.0,0.00014674]
[1735835916973,0.0799,97611.0,97610.0,0.00114674]
[1735835917343,0.2299,97611.0,97610.0,0.00014674]
[1735835918185,0.2309,97611.0,97610.0,0.00014674]
[1735835918783,0.2359,97611.0,97610.0,0.00014674]
[1735835919206,0.33988632,97611.0,97610.0,0.00014674]
[1735835919404,0.44117738,97611.0,97610.0,0.00014674]
[1735835919566,0.54117738,97611.0,97610.0,0.00014674]
[1735835919762,0.53988632,97611.0,97610.0,0.00014674]
[1735835920779,0.56304142,97611.0,97610.0,0.00014674]
[1735835920992,0.56204142,97611.0,97610.0,0.00014674]
[1735835921197,0.43988632,97611.0,97610.0,0.00014674]
[1735835921351,0.33988632,97611.0,97610.0,0.00014674]
[1735835921958,0.33488632,97611.0,97610.0,0.00014674]
[1735835922329,0.66225136,97611.0,97610.0,0.00114674]
[1735835923108,0.34388632,97611.0,97610.0,0.00114674]
[1735835925975,0.44388632,97611.0,97610.0,0.00114674]
[1735835926624,0.204957,97581.0,97580.0,0.000171]
[1735835926835,0.204957,97581.0,97580.0,0.00031784]
[1735835926956,0.45894332,97581.0,97580.0,0.00031784]
[1735835927753,0.45894332,97581.0,97580.0,0.00131784]
[1735835928478,0.45894332,97581.0,97580.0,0.00231784]
[1735835928853,0.46971479,97581.0,97580.0,0.00231784]
[1735835929679,0.204944,97588.0,97580.0,0.00231784]
[1735835929680,0.204941,97590.0,97580.0,0.00231784]
[1735835929982,0.15,97589.0,97580.0,0.00231784]
[1735835930574,0.15,97589.0,97580.0,0.00131784]
[1735835931200,0.01051138,97590.0,97580.0,0.00131784]
[1735835931560,0.15,97598.0,97580.0,0.00131784]
[1735835931758,0.15,97601.0,97581.0,0.204957]
[1735835932041,0.15,97599.0,97580.0,0.00031784]
[1735835932242,0.15,97597.0,97580.0,0.00031784]
[1735835932355,0.354922,97599.0,97580.0,0.00031784]
[1735835932356,0.003,97590.0,97580.0,0.00031784]
[1735835932774,0.15,97597.0,97580.0,0.00031784]
[1735835932975,0.15,97601.0,97582.0,0.204955]
[1735835933195,0.158,97601.0,97581.0,0.001]
[1735835933393,0.15,97599.0,97583.0,0.204953]
[1735835934434,0.15,97597.0,97581.0,0.001]
[1735835935600,0.15,97599.0,97582.0,0.204955]
[1735835936579,0.21547096,97603.0,97587.0,0.204944]
[1735835936755,0.31945728,97603.0,97587.0,0.204944]
[1735835936952,0.31945728,97603.0,97583.0,0.205953]
[1735835937167,0.31945728,97603.0,97583.0,0.204953]
[1735835937365,0.11454528,97603.0,97586.0,0.204946]
[1735835937573,8.55e-05,97610.0,97586.0,0.204946]
[1735835937574,8.55e-05,97610.0,97590.0,0.10896315]
[1735835937777,8.55e-05,97610.0,97591.0,0.12698632]
[1735835937996,8.55e-05,97610.0,97602.0,0.204912]
[1735835938558,8.55e-05,97610.0,97600.0,0.204917]
[1735835938755,0.0050855,97610.0,97600.0,0.204917]
[1735835939003,0.10398632,97609.0,97581.0,0.0774]
[1735835939176,0.10398632,97609.0,97580.0,0.00031784]
[1735835939177,0.29760718,97608.0,97580.0,0.00031784]
[1735835939383,0.204956,97582.0,97580.0,0.00031784]
[1735835939579,0.15,97586.0,97580.0,0.00011784]
[1735835939805,0.15,97584.0,97580.0,0.00011784]
[1735835940440,0.15,97584.0,97580.0,0.00311784]
[1735835941058,0.15,97584.0,97580.0,0.00011784]
[1735835941264,0.15,97584.0,97580.0,0.00211784]
[1735835942038,0.15,97584.0,97580.0,0.00611784]
[1735835942039,0.409907,97583.0,97580.0,0.00611784]
[1735835942237,0.409907,97583.0,97580.0,0.00211784]
[1735835942622,0.204957,97581.0,97580.0,0.00511784]
[1735835942824,0.30894332,97581.0,97580.0,0.00011784]
[1735835943272,0.30894332,97581.0,97580.0,0.00711784]
[1735835943678,0.30894332,97581.0,97580.0,0.00411784]
[1735835944268,0.204957,97581.0,97580.0,0.00411784]
[1735835944977,0.204957,97581.0,97580.0,0.00011784]
[1735835945403,0.208957,97581.0,97580.0,0.00011784]
[1735835945744,0.204957,97581.0,97580.0,0.00011784]
[1735835945946,0.206957,97581.0,97580.0,0.00011784]
[1735835946362,0.002,97581.0,97580.0,0.00011784]
[1735835946570,0.002,97581.0,97580.0,0.20740416]
[1735835947709,0.09181878,97608.0,97596.0,0.204926]
[1735835948355,0.09181878,97608.0,97596.0,0.204925]
[1735835948554,0.13781367,97610.0,97587.0,0.023]
[1735835948555,8.55e-05,97610.0,97587.0,0.023]
[1735835948788,0.01048428,97610.0,97594.0,0.20493]
[1735835948992,8.55e-05,97610.0,97594.0,0.20493]
[1735835949196,8.55e-05,97610.0,97594.0,0.40986]
[1735835949407,8.55e-05,97610.0,97598.0,0.204921]
[1735835949578,0.003,97608.0,97598.0,0.204921]
[1735835950909,0.003,97608.0,97598.0,0.10996315]
[1735835951041,0.003,97608.0,97605.0,0.409811]
[1735835951444,8.55e-05,97610.0,97600.0,0.1]
[1735835951445,8.55e-05,97610.0,97601.0,0.023]
[1735835951652,8.55e-05,97610.0,97608.0,0.204899]
[1735835951850,8.55e-05,97610.0,97609.0,0.12698632]
[1735835951851,0.0010855,97610.0,97609.0,0.12698632]
[1735835952067,8.55e-05,97610.0,97609.0,0.12698632]
[1735835953087,0.0010855,97610.0,97609.0,0.13298632]
[1735835953270,0.0010855,97610.0,97609.0,0.13598632]
[1735835953475,0.0010855,97610.0,97609.0,0.009]
[1735835953675,0.0010855,97610.0,97609.0,0.006]
[1735835954087,0.0010855,97610.0,97609.0,0.01]
[1735835954531,8.55e-05,97610.0,97609.0,0.004]
[1735835955065,0.0010855,97610.0,97609.0,0.011]
[1735835955249,8.55e-05,97610.0,97609.0,0.004]
[1735835955479,8.55e-05,97610.0,97608.0,0.204899]
[1735835955683,0.0010855,97610.0,97609.0,0.012]
[1735835956249,0.0010855,97610.0,97609.0,0.009]
[1735835956452,8.55e-05,97610.0,97609.0,0.004]
[1735835957256,8.55e-05,97610.0,97608.0,0.21542838]
[1735835957633,0.0010855,97610.0,97608.0,0.22442838]
[1735835957861,0.0010855,97610.0,97608.0,0.21542838]
[1735835957862,8.55e-05,97610.0,97608.0,0.21542838]
[1735835958313,0.0010855,97610.0,97609.0,0.009]
[1735835958547,0.0010855,97610.0,97608.0,0.21542838]
[1735835958803,0.0010855,97610.0,97609.0,0.005]
[1735835959035,0.0020855,97610.0,97609.0,0.005]
[1735835959206,8.55e-05,97610.0,97609.0,0.005]
[1735835959409,8.55e-05,97610.0,97609.0,0.009]
[1735835959644,0.0010855,97610.0,97609.0,0.009]
[1735835960578,0.0010855,97610.0,97609.0,0.014]
[1735835962436,0.25507182,97610.0,97609.0,0.014]
[1735835962871,0.25507182,97610.0,97609.0,0.009]
[1735835963189,0.16149447,97610.0,97609.0,0.01]
[1735835963530,0.16149447,97610.0,97609.0,0.009]
[1735835963725,0.354899,97609.0,97593.0,0.204932]
[1735835963926,0.16049447,97610.0,97590.0,0.10896315]
[1735835963927,8.55e-05,97610.0,97608.0,0.204899]
[1735835964243,8.55e-05,97624.0,97618.0,0.30488]
[1735835964441,8.55e-05,97624.0,97618.0,0.48006632]
[1735835964650,1e-06,97624.0,97623.0,0.1]
[1735835964837,1e-06,97624.0,97623.0,0.43185532]
[1735835965024,5e-07,97625.0,97624.0,0.123]
[1735835965229,5e-07,97625.0,97624.0,0.22698632]
[1735835965445,0.03036328,97629.0,97628.0,0.2]
[1735835965647,0.08160482,97634.0,97633.0,0.327848]
[1735835965846,0.08160482,97634.0,97633.0,0.51193432]
[1735835966436,8.55e-05,97668.0,97649.0,0.227815]
[1735835966591,8.55e-05,97668.0,97649.0,0.33180132]
[1735835966787,8.55e-05,97668.0,97649.0,0.204815]
[1735835967396,8.55e-05,97668.0,97649.0,0.33180132]
[1735835968484,0.03151506,97650.0,97649.0,0.34806371]
[1735835969687,0.03151506,97650.0,97649.0,0.35106371]
[1735835969885,0.03151506,97650.0,97649.0,0.32806371]
[1735835970409,0.03151506,97650.0,97649.0,0.01926239]
[1735835970589,0.03151506,97650.0,97649.0,0.12324871]
[1735835970802,0.03142386,97650.0,97649.0,0.12324871]
[1735835973372,0.03150936,97650.0,97649.0,0.12024871]
[1735835973573,0.03150936,97650.0,97649.0,0.14624871]
[1735835973771,0.03050936,97650.0,97649.0,0.14024871]
[1735835974224,0.03150936,97650.0,97649.0,0.14624871]
[1735835974402,0.03150936,97650.0,97649.0,0.26824871]
[1735835974624,0.03150936,97650.0,97649.0,0.36824871]
[1735835975004,0.03150936,97650.0,97649.0,0.35924871]
[1735835975005,0.03050936,97650.0,97649.0,0.35924871]
[1735835975199,8.55e-05,97668.0,97649.0,0.35924871]
[1735835975200,8.55e-05,97668.0,97659.0,0.381594]
[1735835975400,8.55e-05,97668.0,97659.0,0.50858032]
[1735835976429,0.01113056,97660.0,97659.0,0.50858032]